fUSD/lending_fUSD_20250426
["ID","MTS","AMOUNT","RATE_DAILY","PERIOD"]
[359092834,1745704240296,-400.0,0.00019783,2]
[359092835,1745704240307,-944.58,0.00019783,2]
[359092836,1745704240318,-400.0,0.00019783,2]
[359092837,1745704240327,-400.0,0.00019783,2]
[359092838,1745704240338,-2468.05,0.00019783,2]
[359092839,1745704240348,-400.0,0.00019783,2]
[359092840,1745704240358,-400.0,0.00019783,2]
[359092841,1745704240368,-400.0,0.00019783,2]
[359092842,1745704240378,-400.0,0.00019783,2]
[359092843,1745704240388,-400.0,0.00019783,2]
[359092845,1745704240398,-400.0,0.00019783,2]
[359092846,1745704240408,-400.0,0.00019783,2]
[359092848,1745704240418,-400.0,0.00019783,2]
[359092850,1745704240428,-488.95,0.00019783,2]
[359092852,1745704240438,-400.0,0.00019783,2]
[359092854,1745704240447,-400.0,0.00019783,2]
[359092856,1745704240457,-400.0,0.00019783,2]
[359092858,1745704240467,-400.0,0.00019783,2]
[359092860,1745704240476,-400.0,0.00019783,2]
[359092862,1745704240486,-400.0,0.00019783,2]
[359092864,1745704240496,-400.0,0.00019783,2]
[359092866,1745704240506,-681.06,0.00019783,2]
[359092868,1745704240516,-400.0,0.00019783,2]
[359092870,1745704240526,-400.0,0.00019783,2]
[359092872,1745704240536,-400.0,0.00019783,2]
[359092874,1745704240546,-400.0,0.00019783,2]
[359092876,1745704240556,-400.0,0.00019783,2]
[359092878,1745704240567,-400.0,0.00019783,2]
[359092880,1745704240576,-400.0,0.00019783,2]
[359092882,1745704240586,-500.0,0.00019783,2]
[359092884,1745704240595,-400.0,0.00019783,2]
[359092886,1745704240605,-400.0,0.00019783,2]
[359092888,1745704240614,-593.82,0.00019783,2]
[359092890,1745704240628,-400.0,0.00019783,2]
[359092892,1745704240638,-400.0,0.00019783,2]
[359092894,1745704240647,-400.0,0.00019783,2]
[359092896,1745704240657,-400.0,0.00019783,2]
[359092897,1745704240667,-401.78,0.00019783,2]
[359092899,1745704240677,-400.0,0.00019783,2]
[359092901,1745704240687,-400.0,0.00019783,2]
[359092903,1745704240696,-400.0,0.00019783,2]
[359092904,1745704240707,-400.0,0.00019783,2]
[359092905,1745704240717,-400.0,0.00019783,2]
[359092906,1745704240728,-751.86,0.00019783,2]
[359092907,1745704240738,-400.0,0.00019783,2]
[359092908,1745704240747,-400.0,0.00019783,2]
[359092909,1745704240757,-400.0,0.00019783,2]
[359092910,1745704240766,-400.0,0.00019783,2]
[359092911,1745704240777,-400.0,0.00019783,2]
[359092912,1745704240787,-400.0,0.00019783,2]
[359092913,1745704240797,-400.0,0.00019783,2]
[359092914,1745704240808,-593.1,0.00019783,2]
[359092915,1745704240818,-347.59625017,0.00019783,2]
[359092916,1745704240828,-519.95197459,0.00019783,2]
[359092917,1745704240838,-964.26,0.00019783,2]
[359092918,1745704240848,-400.0,0.00019783,2]
[359092919,1745704240857,-867.83,0.00019783,2]
[359092920,1745704240867,-400.0,0.00019783,2]
[359092921,1745704240877,-400.0,0.00019783,2]
[359092922,1745704240887,-400.0,0.00019783,2]
[359092923,1745704240897,-451.31,0.00019783,2]
[359092924,1745704240908,-400.0,0.00019783,2]
[359092925,1745704240918,-481.62,0.00019783,2]
[359092926,1745704240931,-400.0,0.00019783,2]
[359092927,1745704240951,-543.46,0.00019783,2]
[359092928,1745704240962,-503.35852567,0.00019783,2]
[359092929,1745704240973,-400.0,0.00019783,2]
[359092930,1745704240983,-525.43,0.00019783,2]
[359092931,1745704240993,-212.27858785,0.00019784,2]
[359092932,1745704241003,-206.2795176,0.00019784,2]
[359092933,1745704241012,-400.0,0.00019784,2]
[359092934,1745704241022,-400.0,0.00019784,2]
[359092935,1745704241033,-400.0,0.00019784,2]
[359092936,1745704241043,-400.0,0.00019784,2]
[359092938,1745704241052,-400.0,0.00019784,2]
[359092940,1745704241063,-182.89226889,0.00019784,2]
[359092942,1745704241072,-400.0,0.00019784,2]
[359092944,1745704241083,-400.0,0.00019784,2]
[359092946,1745704241094,-400.0,0.00019784,2]
[359092948,1745704241104,-400.0,0.00019784,2]
[359092950,1745704241114,-237.5090472,0.00019784,2]
[359092952,1745704241124,-500.0,0.00019784,2]
[359092954,1745704241134,-400.0,0.00019784,2]
[359092956,1745704241143,-513.88037635,0.00019784,2]
[359092958,1745704241153,-517.77229489,0.00019784,2]
[359092960,1745704241162,-400.0,0.00019784,2]
[359092962,1745704241173,-400.0,0.00019784,2]
[359092964,1745704241183,-734.0,0.00019784,2]
[359092966,1745704241193,-536.65850559,0.00019784,2]
[359092968,1745704241203,-400.0,0.00019784,2]
[359092970,1745704241213,-529.40516209,0.00019784,2]
[359092972,1745704241222,-500.83206328,0.00019784,2]
[359092974,1745704241232,-512.96,0.00019784,2]
[359092976,1745704241242,-400.0,0.00019784,2]
[359092978,1745704241252,-500.0,0.00019784,2]
[359092980,1745704241262,-215.039,0.00019784,2]
[359092982,1745704241271,-265.07858345,0.00019784,2]
[359092984,1745704241282,-502.20725441,0.00019784,2]
[359092986,1745704241291,-400.0,0.00019784,2]
[359092988,1745704241301,-500.0,0.00019784,2]
[359092990,1745704241310,-405.26708458,0.00019784,2]
[359092992,1745704241320,-544.12091407,0.00019784,2]
[359092994,1745704241329,-400.0,0.00019784,2]
[359092995,1745704241339,-501.17231651,0.00019784,2]
[359092997,1745704241348,-400.0,0.00019784,2]
[359093000,1745704241359,-400.0,0.00019784,2]
[359093001,1745704241369,-400.0,0.00019784,2]
[359093003,1745704241381,-400.0,0.00019784,2]
[359093005,1745704241391,-400.0,0.00019784,2]
[359093007,1745704241401,-400.0,0.00019784,2]
[359093009,1745704241410,-1126.71,0.00019784,2]
[359093011,1745704241421,-500.0,0.00019784,2]
[359093013,1745704241431,-400.0,0.00019784,2]
[359093015,1745704241440,-449.71,0.00019784,2]
[359093017,1745704241449,-500.0,0.00019784,2]
[359093019,1745704241460,-500.0,0.00019784,2]
[359093021,1745704241471,-400.0,0.00019784,2]
[359093023,1745704241480,-400.0,0.00019784,2]
[359093025,1745704241489,-400.0,0.00019784,2]
[359093027,1745704241499,-569.15,0.00019784,2]
[359093029,1745704241509,-470.08,0.00019784,2]
[359093031,1745704241519,-400.0,0.00019784,2]
[359093033,1745704241529,-470.46,0.00019784,2]
[359093035,1745704241539,-497.35,0.00019784,2]
[359093037,1745704241548,-503.48671736,0.00019784,2]
[359093039,1745704241558,-522.08,0.00019784,2]
[359093041,1745704241567,-488.68,0.00019784,2]
[359093043,1745704241576,-400.0,0.00019784,2]
[359093045,1745704241585,-400.0,0.00019784,2]
[359093047,1745704241595,-458.05,0.00019784,2]
[359093049,1745704241604,-400.0,0.00019784,2]
[359093051,1745704241613,-400.0,0.00019784,2]
[359093053,1745704241622,-400.0,0.00019784,2]
[359093055,1745704241631,-400.0,0.00019784,2]
[359093057,1745704241640,-614.62,0.00019784,2]
[359093059,1745704241651,-308.83261399,0.00019784,2]
[359093060,1745704241663,-546.01,0.00019784,2]
[359093063,1745704241672,-400.0,0.00019784,2]
[359093064,1745704241682,-400.0,0.00019784,2]
[359093066,1745704241691,-500.0,0.00019784,2]
[359093069,1745704241702,-400.0,0.00019784,2]
[359093070,1745704241711,-532.03936521,0.00019784,2]
[359093072,1745704241720,-400.0,0.00019784,2]
[359093074,1745704241730,-472.32,0.00019784,2]
[359093076,1745704241739,-500.0,0.00019784,2]
[359093079,1745704241750,-400.0,0.00019784,2]
[359093080,1745704241760,-449.44,0.00019784,2]
[359093082,1745704241769,-980.37,0.00019784,2]
[359093085,1745704241779,-500.0,0.00019784,2]
[359093087,1745704241789,-503.66766536,0.00019784,2]
[359093089,1745704241798,-400.0,0.00019784,2]
[359093090,1745704241808,-400.0,0.00019784,2]
[359093091,1745704241817,-400.0,0.00019784,2]
[359093092,1745704241828,-400.0,0.00019784,2]
[359093093,1745704241839,-894.12,0.00019784,2]
[359093094,1745704241850,-500.0,0.00019784,2]
[359093095,1745704241861,-400.0,0.00019784,2]
[359093096,1745704241870,-400.0,0.00019784,2]
[359093097,1745704241880,-218.13582907,0.00019784,2]
[359093098,1745704241889,-400.0,0.00019784,2]
[359093099,1745704241899,-400.0,0.00019784,2]
[359093100,1745704241908,-400.0,0.00019784,2]
[359093101,1745704241917,-400.0,0.00019784,2]
[359093102,1745704241927,-400.0,0.00019784,2]
[359093103,1745704241940,-400.0,0.00019784,2]
[359093104,1745704241949,-732.03,0.00019784,2]
[359093105,1745704241959,-459.27,0.00019784,2]
[359093106,1745704241969,-500.0,0.00019784,2]
[359093107,1745704241979,-150.0,0.00019784,2]
[359093108,1745704241991,-150.0,0.00019784,2]
[359093109,1745704242001,-681.0,0.00019784,2]
[359093110,1745704242011,-150.0,0.00019784,2]
[359093111,1745704242021,-400.0,0.00019784,2]
[359093112,1745704242032,-400.0,0.00019784,2]
[359093113,1745704242042,-780.0,0.00019784,2]
[359093114,1745704242052,-400.0,0.00019784,2]
[359093115,1745704242063,-400.0,0.00019784,2]
[359093116,1745704242072,-400.0,0.00019784,2]
[359093117,1745704242082,-530.66335049,0.00019784,2]
[359093118,1745704242092,-150.0,0.00019784,2]
[359093119,1745704242101,-150.0,0.00019784,2]
[359093120,1745704242112,-680.1,0.00019784,2]
[359093121,1745704242121,-151.39713892,0.00019784,2]
[359093122,1745704242131,-400.0,0.00019784,2]
[359093123,1745704242141,-150.0,0.00019784,2]
[359093124,1745704242150,-150.0,0.00019784,2]
[359093125,1745704242159,-452.24,0.00019784,2]
[359093126,1745704242169,-150.0,0.00019784,2]
[359093127,1745704242178,-400.0,0.00019784,2]
[359093128,1745704242188,-473.62,0.00019784,2]
[359093129,1745704242198,-400.0,0.00019784,2]
[359093130,1745704242207,-400.0,0.00019784,2]
[359093131,1745704242217,-400.0,0.00019784,2]
[359093132,1745704242226,-400.0,0.00019784,2]
[359093133,1745704242236,-400.0,0.00019784,2]
[359093134,1745704242245,-400.0,0.00019784,2]
[359093135,1745704242254,-400.0,0.00019784,2]
[359093136,1745704242264,-400.0,0.00019784,2]
[359093137,1745704242273,-400.0,0.00019784,2]
[359093138,1745704242283,-542.92,0.00019784,2]
[359093139,1745704242292,-156.34320295,0.00019784,2]
[359093140,1745704242302,-400.0,0.00019784,2]
[359093141,1745704242311,-443.22,0.00019784,2]
[359093142,1745704242320,-400.0,0.00019784,2]
[359093143,1745704242330,-400.0,0.00019784,2]
[359093144,1745704242340,-400.0,0.00019784,2]
[359093145,1745704242353,-532.01,0.00019784,2]
[359093146,1745704242364,-643.82,0.00019784,2]
[359093147,1745704242374,-400.0,0.00019784,2]
[359093148,1745704242384,-400.0,0.00019784,2]
[359093149,1745704242394,-400.0,0.00019784,2]
[359093151,1745704242403,-400.0,0.00019784,2]
[359093152,1745704242413,-400.0,0.00019784,2]
[359093153,1745704242422,-430.91,0.00019784,2]
[359093154,1745704242431,-821.34,0.00019784,2]
[359093155,1745704242440,-430.26,0.00019784,2]
[359093156,1745704242449,-151.0,0.00019784,2]
[359093157,1745704242459,-400.0,0.00019784,2]
[359093158,1745704242469,-400.0,0.00019784,2]
[359093159,1745704242478,-400.0,0.00019784,2]
[359093160,1745704242487,-2565.36,0.00019784,2]
[359093161,1745704242497,-434.84,0.00019784,2]
[359093162,1745704242507,-400.0,0.00019784,2]
[359093164,1745704242516,-933.06,0.00019784,2]
[359093165,1745704242527,-400.0,0.00019784,2]
[359093167,1745704242537,-400.0,0.00019784,2]
[359093168,1745704242548,-400.0,0.00019784,2]
[359093169,1745704242558,-400.0,0.00019784,2]
[359093170,1745704242568,-400.0,0.00019784,2]
[359093172,1745704242578,-858.83,0.00019784,2]
[359093173,1745704242587,-150.0,0.00019784,2]
[359093174,1745704242596,-151.0,0.00019784,2]
[359093175,1745704242606,-400.0,0.00019784,2]
[359093176,1745704242615,-150.0,0.00019784,2]
[359093177,1745704242625,-150.0,0.00019784,2]
[359093178,1745704242636,-511.35,0.00019784,2]
[359093180,1745704242646,-150.0,0.00019784,2]
[359093181,1745704242656,-462.76,0.00019784,2]
[359093182,1745704242666,-2321.02,0.00019784,2]
[359093183,1745704242678,-503.96,0.00019784,2]
[359093184,1745704242689,-400.0,0.00019784,2]
[359093185,1745704242699,-4056.6,0.00019784,2]
[359093186,1745704242710,-428.73,0.00019784,2]
[359093187,1745704242723,-179.49834234,0.00019784,2]
[359093188,1745704242733,-181.422738,0.00019784,2]
[359093189,1745704242743,-438.67,0.00019784,2]
[359093190,1745704242753,-400.0,0.00019784,2]
[359093191,1745704242763,-412.148996,0.00019784,2]
[359093192,1745704242774,-932.08,0.00019784,2]
[359093193,1745704242784,-412.148996,0.00019784,2]
[359093194,1745704242794,-707.26,0.00019784,2]
[359093195,1745704242804,-400.0,0.00019784,2]
[359093196,1745704242814,-400.0,0.00019784,2]
[359093197,1745704242826,-151.0,0.00019784,2]
[359093198,1745704242836,-515.88,0.00019784,2]
[359093199,1745704242846,-400.0,0.00019784,2]
[359093200,1745704242856,-151.0,0.00019784,2]
[359093201,1745704242866,-461.02,0.00019784,2]
[359093202,1745704242877,-400.0,0.00019784,2]
[359093203,1745704242887,-80144.06,0.00019784,2]
[359093204,1745704242898,-456.36,0.00019784,2]
[359093205,1745704242907,-542.99,0.00019784,2]
[359093206,1745704242917,-151.0,0.00019784,2]
[359093207,1745704242927,-400.0,0.00019784,2]
[359093208,1745704242940,-400.0,0.00019784,2]
[359093209,1745704242951,-534.28,0.00019784,2]
[359093210,1745704242963,-151.0,0.00019784,2]
[359093211,1745704242976,-9046.58,0.00019784,2]
[359093212,1745704242986,-400.0,0.00019784,2]
[359093213,1745704242996,-503.43,0.00019784,2]
[359093214,1745704243006,-4462.53,0.00019784,2]
[359093215,1745704243016,-151.0,0.00019784,2]
[359093216,1745704243027,-400.0,0.00019784,2]
[359093217,1745704243036,-400.0,0.00019784,2]
[359093218,1745704243046,-482.69,0.00019784,2]
[359093219,1745704243056,-400.0,0.00019784,2]
[359093220,1745704243065,-186.896692,0.00019784,2]
[359093221,1745704243075,-1849.04,0.00019784,2]
[359093222,1745704243085,-545.51,0.00019784,2]
[359093223,1745704243095,-151.0,0.00019784,2]
[359093224,1745704243104,-811.57,0.00019784,2]
[359093225,1745704243114,-186.896692,0.00019784,2]
[359093226,1745704243125,-154.028676,0.00019784,2]
[359093227,1745704243135,-402.81,0.00019784,2]
[359093228,1745704243145,-400.0,0.00019784,2]
[359093229,1745704243155,-96356.51,0.00019784,2]
[359093231,1745704243165,-153.291055,0.00019784,2]
[359093233,1745704243175,-400.0,0.00019784,2]
[359093235,1745704243185,-782.38,0.00019784,2]
[359093237,1745704243195,-592.11,0.00019784,2]
[359093239,1745704243204,-151.0,0.00019784,2]
[359093241,1745704243214,-162.100813,0.00019784,2]
[359093243,1745704243223,-407.8,0.00019784,2]
[359093245,1745704243233,-400.0,0.00019784,2]
[359093247,1745704243242,-680.79,0.00019784,2]
[359093249,1745704243252,-400.0,0.00019784,2]
[359093251,1745704243262,-162.100813,0.00019784,2]
[359093253,1745704243272,-414.88,0.00019784,2]
[359093255,1745704243282,-538.44,0.00019784,2]
[359093257,1745704243292,-538.44,0.00019784,2]
[359093259,1745704243302,-437.84,0.00019784,2]
[359093261,1745704243312,-881.52,0.00019784,2]
[359093263,1745704243322,-400.0,0.00019784,2]
[359093265,1745704243331,-500.0,0.00019784,2]
[359093267,1745704243341,-500.0,0.00019784,2]
[359093269,1745704243352,-500.0,0.00019784,2]
[359093271,1745704243362,-1436.38,0.00019784,2]
[359093273,1745704243372,-400.0,0.00019784,2]
[359093275,1745704243382,-400.0,0.00019784,2]
[359093277,1745704243392,-500.0,0.00019784,2]
[359093279,1745704243402,-400.0,0.00019784,2]
[359093281,1745704243411,-400.0,0.00019784,2]
[359093283,1745704243421,-400.0,0.00019784,2]
[359093286,1745704243431,-927.368738,0.00019784,2]
[359093287,1745704243440,-400.0,0.00019784,2]
[359093290,1745704243450,-400.0,0.00019784,2]
[359093291,1745704243459,-927.368738,0.00019784,2]
[359093293,1745704243469,-400.0,0.00019784,2]
[359093295,1745704243479,-151.0,0.00019784,2]
[359093297,1745704243488,-574.81,0.00019784,2]
[359093299,1745704243498,-550.09,0.00019784,2]
[359093301,1745704243507,-626.13,0.00019784,2]
[359093303,1745704243517,-787.43,0.00019784,2]
[359093305,1745704243528,-817.03,0.00019784,2]
[359093307,1745704243538,-400.0,0.00019784,2]
[359093309,1745704243547,-669.89,0.00019784,2]
[359093311,1745704243556,-228.245895,0.00019784,2]
[359093313,1745704243566,-228.245895,0.00019784,2]
[359093315,1745704243576,-533.0,0.00019784,2]
[359093317,1745704243587,-400.0,0.00019784,2]
[359093319,1745704243597,-151.0,0.00019784,2]
[359093322,1745704243607,-151.0,0.00019784,2]
[359093324,1745704243616,-590.34,0.00019784,2]
[359093326,1745704243625,-151.0,0.00019784,2]
[359093327,1745704243635,-564.46,0.00019784,2]
[359093330,1745704243645,-400.0,0.00019784,2]
[359093332,1745704243654,-1227.56,0.00019784,2]
[359093334,1745704243664,-400.0,0.00019784,2]
[359093335,1745704243674,-616.5,0.00019784,2]
[359093338,1745704243684,-400.0,0.00019784,2]
[359093339,1745704243694,-786.55,0.00019784,2]
[359093342,1745704243706,-409.01,0.00019784,2]
[359093344,1745704243716,-1613.0485324,0.00019785,2]
[359093346,1745704243726,-4437.9789083,0.00019785,2]
[359093348,1745704243736,-12196.3105088,0.00019785,2]
[359093350,1745704243746,-272.184604,0.00019785,2]
[359093352,1745704243755,-272.184604,0.00019785,2]
[359093354,1745704243765,-151.0,0.00019785,2]
[359093356,1745704243774,-151.0,0.00019785,2]
[359093358,1745704243784,-151.921909,0.00019785,2]
[359093360,1745704243794,-151.0,0.00019785,2]
[359093362,1745704243804,-151.0,0.00019785,2]
[359093364,1745704243815,-152.021036,0.00019785,2]
[359093366,1745704243824,-151.0,0.00019785,2]
[359093368,1745704243834,-151.0,0.00019785,2]
[359093370,1745704243844,-151.0,0.00019785,2]
[359093372,1745704243853,-164.3326,0.00019785,2]
[359093374,1745704243863,-164.3326,0.00019785,2]
[359093376,1745704243873,-151.0,0.00019785,2]
[359093378,1745704243883,-151.0,0.00019785,2]
[359093380,1745704243892,-151.0,0.00019785,2]
[359093382,1745704243901,-150.0,0.00019786,2]
[359093384,1745704243912,-150.0,0.00019788,2]
[359093386,1745704243921,-566.03088969,0.0001979,2]
[359093388,1745704243932,-985.710049,0.0001979,2]
[359093390,1745704243942,-150.0,0.0001979,2]
[359093392,1745704243952,-616.0,0.00019793,2]
[359093393,1745704243962,-150.0,0.00019793,2]
[359093396,1745704243973,-538.44,0.00019793,2]
[359093398,1745704243982,-500.0,0.00019793,2]
[359093400,1745704243992,-400.0,0.00019794,2]
[359093402,1745704244002,-504.70218689,0.00019794,2]
[359093404,1745704244012,-653.78,0.00019794,2]
[359093406,1745704244022,-400.0,0.00019794,2]
[359093408,1745704244032,-486.2,0.00019794,2]
[359093410,1745704244042,-400.0,0.00019794,2]
[359093412,1745704244051,-182.35493135,0.00019794,2]
[359093414,1745704244061,-604.16,0.00019794,2]
[359093416,1745704244071,-1000.0,0.00019794,2]
[359093418,1745704244081,-400.0,0.00019794,2]
[359093420,1745704244091,-400.0,0.00019794,2]
[359093422,1745704244103,-500.0,0.00019794,2]
[359093424,1745704244112,-400.0,0.00019794,2]
[359093426,1745704244122,-400.0,0.00019794,2]
[359093428,1745704244133,-500.0,0.00019794,2]
[359093430,1745704244143,-400.0,0.00019794,2]
[359093432,1745704244154,-744.73,0.00019794,2]
[359093434,1745704244164,-662.83,0.00019794,2]
[359093436,1745704244174,-400.0,0.00019794,2]
[359093438,1745704244184,-400.0,0.00019794,2]
[359093440,1745704244194,-400.0,0.00019794,2]
[359093442,1745704244205,-400.0,0.00019794,2]
[359093444,1745704244216,-400.0,0.00019794,2]
[359093446,1745704244226,-400.0,0.00019794,2]
[359093448,1745704244236,-400.0,0.00019794,2]
[359093450,1745704244245,-400.0,0.00019794,2]
[359093452,1745704244255,-400.0,0.00019794,2]
[359093454,1745704244265,-321.32684756,0.00019794,2]
[359093456,1745704244275,-400.0,0.00019794,2]
[359093458,1745704244286,-400.0,0.00019794,2]
[359093459,1745704244296,-400.0,0.00019794,2]
[359093460,1745704244307,-400.0,0.00019794,2]
[359093461,1745704244317,-203.5320357,0.00019794,2]
[359093462,1745704244328,-400.0,0.00019794,2]
[359093476,1745704244562,-291.7918682,0.00019794,2]
[359093478,1745704244573,-400.0,0.00019794,2]
[359093480,1745704244583,-400.0,0.00019794,2]
[359093482,1745704244593,-400.0,0.00019794,2]
[359093484,1745704244605,-400.0,0.00019794,2]
[359093486,1745704244616,-400.0,0.00019794,2]
[359093488,1745704244626,-293.62364312,0.00019794,2]
[359093490,1745704244636,-484.74,0.00019794,2]
[359093492,1745704244647,-400.0,0.00019794,2]
[359093494,1745704244656,-500.0,0.00019794,2]
[359093496,1745704244666,-563.3,0.00019794,2]
[359093498,1745704244676,-336.44920315,0.00019794,2]
[359093499,1745704244687,-400.0,0.00019794,2]
[359093500,1745704244698,-400.0,0.00019794,2]
[359093501,1745704244709,-443.9,0.00019794,2]
[359093502,1745704244719,-400.0,0.00019794,2]
[359093504,1745704244730,-500.0,0.00019794,2]
[359093506,1745704244739,-400.0,0.00019794,2]
[359093508,1745704244750,-400.0,0.00019794,2]
[359093510,1745704244761,-400.0,0.00019794,2]
[359093511,1745704244771,-493.93,0.00019794,2]
[359093512,1745704244782,-400.0,0.00019794,2]
[359093513,1745704244792,-400.0,0.00019794,2]
[359093514,1745704244802,-400.0,0.00019794,2]
[359093515,1745704244812,-400.0,0.00019794,2]
[359093516,1745704244825,-400.0,0.00019794,2]
[359093517,1745704244836,-641.22,0.00019794,2]
[359093518,1745704244847,-400.0,0.00019794,2]
[359093519,1745704244858,-400.0,0.00019794,2]
[359093520,1745704244868,-400.0,0.00019794,2]
[359093521,1745704244878,-400.0,0.00019794,2]
[359093522,1745704244888,-428.01,0.00019794,2]
[359093523,1745704244898,-400.0,0.00019794,2]
[359093524,1745704244909,-693.18,0.00019794,2]
[359093525,1745704244919,-400.0,0.00019794,2]
[359093526,1745704244930,-400.0,0.00019794,2]
[359093527,1745704244944,-289.85545901,0.00019794,2]
[359093528,1745704244955,-400.0,0.00019794,2]
[359093529,1745704244965,-400.0,0.00019794,2]
[359093530,1745704244976,-400.0,0.00019794,2]
[359093531,1745704244986,-400.0,0.00019794,2]
[359093532,1745704244997,-400.0,0.00019794,2]
[359093533,1745704245007,-400.0,0.00019794,2]
[359093534,1745704245018,-400.0,0.00019794,2]
[359093535,1745704245028,-400.0,0.00019794,2]
[359093536,1745704245038,-337.56692072,0.00019794,2]
[359093537,1745704245048,-400.0,0.00019794,2]
[359093538,1745704245058,-400.0,0.00019794,2]
[359093539,1745704245069,-501.42725082,0.00019794,2]
[359093540,1745704245078,-400.0,0.00019794,2]
[359093541,1745704245089,-493.76,0.00019794,2]
[359093542,1745704245099,-507.44276826,0.00019794,2]
[359093543,1745704245109,-510.8509464,0.00019794,2]
[359093544,1745704245120,-400.0,0.00019794,2]
[359093545,1745704245130,-400.0,0.00019794,2]
[359093546,1745704245141,-412.33,0.00019794,2]
[359093547,1745704245152,-400.0,0.00019794,2]
[359093548,1745704245163,-400.0,0.00019794,2]
[359093549,1745704245173,-400.0,0.00019794,2]
[359093550,1745704245184,-400.0,0.00019794,2]
[359093551,1745704245194,-500.0,0.00019794,2]
[359093552,1745704245204,-515.52386611,0.00019794,2]
[359093553,1745704245214,-456.56,0.00019794,2]
[359093554,1745704245224,-400.0,0.00019794,2]
[359093555,1745704245234,-400.0,0.00019794,2]
[359093556,1745704245245,-400.0,0.00019794,2]
[359093557,1745704245255,-481.88986859,0.00019794,2]
[359093558,1745704245266,-500.0,0.00019794,2]
[359093559,1745704245276,-552.39,0.00019794,2]
[359093560,1745704245286,-400.0,0.00019794,2]
[359093561,1745704245297,-400.0,0.00019794,2]
[359093562,1745704245307,-400.0,0.00019794,2]
[359093563,1745704245317,-400.0,0.00019794,2]
[359093564,1745704245328,-400.0,0.00019794,2]
[359093565,1745704245338,-400.0,0.00019794,2]
[359093566,1745704245348,-400.0,0.00019794,2]
[359093567,1745704245359,-543.38,0.00019794,2]
[359093568,1745704245370,-400.0,0.00019794,2]
[359093569,1745704245381,-400.0,0.00019794,2]
[359093570,1745704245391,-400.0,0.00019794,2]
[359093571,1745704245402,-400.0,0.00019794,2]
[359093572,1745704245413,-501.9982147,0.00019794,2]
[359093573,1745704245424,-400.0,0.00019794,2]
[359093574,1745704245434,-400.0,0.00019794,2]
[359093575,1745704245445,-500.0,0.00019794,2]
[359093576,1745704245457,-498.14,0.00019794,2]
[359093577,1745704245467,-400.0,0.00019794,2]
[359093578,1745704245480,-400.0,0.00019794,2]
[359093579,1745704245491,-152.350808,0.00019794,2]
[359093580,1745704245501,-400.0,0.00019794,2]
[359093581,1745704245515,-796.39,0.00019794,2]
[359093582,1745704245527,-400.0,0.00019794,2]
[359093583,1745704245538,-628.450043,0.00019794,2]
[359093584,1745704245549,-611.52,0.00019794,2]
[359093585,1745704245560,-400.0,0.00019794,2]
[359093586,1745704245570,-153.660397,0.00019794,2]